[Event "FIDE World Rapid Chess Championship 2021"]
[White "Dragnev, Valentin"]
[Black "Lima, Darcy"]
[WhiteFideId "1634852"]
[BlackFideId "2100045"]
[WhiteElo "2409"]
[BlackElo "2505"]
[Result "1/2-1/2"]
[Round "08"]
[TimeControl "900+10"]
[Date "2021.12.27"]
[WhiteClock "0:00:45"]
[BlackClock "0:00:54"]

1. e4 {[%clk 0:15:00]}  e5 {[%clk 0:15:00]} 2. Nf3 {[%clk 0:15:00]}  Nc6 {[%clk 0:15:00]} 3. Bb5 {[%clk 0:15:00]}  Bc5 {[%clk 0:15:00]} 4. c3 {[%clk 0:15:00]}  Nf6 {[%clk 0:15:24]} 5. d4 {[%clk 0:14:08]}  Bb6 {[%clk 0:15:24]} 6. O-O {[%clk 0:14:08]}  O-O {[%clk 0:15:24]} 7. dxe5 {[%clk 0:14:08]}  Nxe4 {[%clk 0:15:24]} 8. Qd5 {[%clk 0:14:08]}  Nc5 {[%clk 0:15:24]} 9. Be3 {[%clk 0:14:08]}  Ne7 {[%clk 0:15:24]} 10. Qd1 {[%clk 0:14:08]}  Ne4 {[%clk 0:14:50]} 11. Bxb6 {[%clk 0:11:45]}  axb6 {[%clk 0:12:29]} 12. Nbd2 {[%clk 0:11:45]}  d5 {[%clk 0:12:29]} 13. Bd3 {[%clk 0:11:45]}  Bf5 {[%clk 0:12:29]} 14. Qc2 {[%clk 0:11:45]}  Nxd2 {[%clk 0:12:29]} 15. Nxd2 {[%clk 0:11:45]}  Qd7 {[%clk 0:12:00]} 16. a3 {[%clk 0:11:29]}  c5 {[%clk 0:12:00]} 17. Rad1 {[%clk 0:11:29]}  Rfd8 {[%clk 0:12:00]} 18. Rfe1 {[%clk 0:11:29]}  h6 {[%clk 0:12:00]} 19. Nf1 {[%clk 0:11:00]}  Qe6 {[%clk 0:09:46]} 20. h3 {[%clk 0:11:00]}  d4 {[%clk 0:09:46]} 21. c4 {[%clk 0:11:00]}  Bxd3 {[%clk 0:09:46]} 22. Rxd3 {[%clk 0:11:00]}  Ng6 {[%clk 0:09:14]} 23. Nh2 {[%clk 0:09:37]}  Nxe5 {[%clk 0:09:02]} 24. Qb3 {[%clk 0:09:37]}  Qf6 {[%clk 0:08:58]} 25. Rd2 {[%clk 0:04:45]}  h5 {[%clk 0:06:14]} 26. Rde2 {[%clk 0:04:45]}  d3 {[%clk 0:06:14]} 27. Re4 {[%clk 0:04:45]}  d2 {[%clk 0:06:14]} 28. Rd1 {[%clk 0:04:45]}  Rd3 {[%clk 0:06:14]} 29. Qb5 {[%clk 0:02:44]}  Rad8 {[%clk 0:06:19]} 30. Nf1 {[%clk 0:02:44]}  Ng6 {[%clk 0:06:19]} 31. Ne3 {[%clk 0:02:44]}  Nf4 {[%clk 0:04:54]} 32. Re8+ {[%clk 0:02:02]}  Kh7 {[%clk 0:04:54]} 33. Rxd8 {[%clk 0:02:02]}  Qxd8 {[%clk 0:04:54]} 34. Qa4 {[%clk 0:02:02]}  g6 {[%clk 0:04:54]} 35. Qc2 {[%clk 0:02:02]}  Qg5 {[%clk 0:04:27]} 36. h4 {[%clk 0:01:05]}  Qxh4 {[%clk 0:04:27]} 37. Rxd2 {[%clk 0:01:05]}  Rd4 {[%clk 0:02:05]} 38. g3 {[%clk 0:00:59]}  Qg5 {[%clk 0:02:05]} 39. Kf1 {[%clk 0:00:59]}  Ne6 {[%clk 0:02:05]} 40. Rxd4 {[%clk 0:00:59]}  cxd4 {[%clk 0:02:05]} 41. Nd5 {[%clk 0:00:59]}  b5 {[%clk 0:02:05]} 42. b3 {[%clk 0:00:59]}  bxc4 {[%clk 0:02:05]} 43. bxc4 {[%clk 0:00:59]}  h4 {[%clk 0:01:27]} 44. Kg2 {[%clk 0:00:47]}  Kg7 {[%clk 0:01:27]} 45. Qe4 {[%clk 0:00:47]}  hxg3 {[%clk 0:01:27]} 46. fxg3 {[%clk 0:00:47]}  Kf8 {[%clk 0:01:27]} 47. Qe2 {[%clk 0:00:47]}  b5 {[%clk 0:01:27]} 48. Qb2 {[%clk 0:00:47]}  bxc4 {[%clk 0:01:27]} 49. Qb4+ {[%clk 0:00:47]}  Kg7 {[%clk 0:01:27]} 50. Qxc4 {[%clk 0:00:47]}  Qd2+ {[%clk 0:01:27]} 51. Kf1 {[%clk 0:00:51]}  d3 {[%clk 0:00:59]} 52. Qc3+ {[%clk 0:00:51]}  Qxc3 {[%clk 0:00:59]} 53. Nxc3 {[%clk 0:00:51]}  Nc5 {[%clk 0:00:59]} 54. Kf2 {[%clk 0:00:51]}  Kf6 {[%clk 0:00:59]} 55. a4 {[%clk 0:00:51]}  Ke5 {[%clk 0:00:59]} 56. Ke3 {[%clk 0:00:51]}  f5 {[%clk 0:00:59]} 57. a5 {[%clk 0:00:51]}  g5 {[%clk 0:00:59]} 58. a6 {[%clk 0:00:51]}  Nxa6 {[%clk 0:00:59]} 59. Kxd3 {[%clk 0:00:51]}  Nb4+ {[%clk 0:00:59]} 60. Ke2 {[%clk 0:00:51]}  Kd4 {[%clk 0:00:59]} 61. Nb5+ {[%clk 0:00:51]}  Ke5 {[%clk 0:01:06]} 62. Kf3 {[%clk 0:00:37]}  Nc6 {[%clk 0:01:06]} 63. Nc3 {[%clk 0:00:37]}  Kd4 {[%clk 0:01:06]} 64. Nb5+ {[%clk 0:00:37]}  Kd3 {[%clk 0:01:06]} 65. Nd6 {[%clk 0:00:37]}  Nd4+ {[%clk 0:01:06]} 66. Kf2 {[%clk 0:00:37]}  g4 {[%clk 0:01:06]} 67. Nf7 {[%clk 0:00:37]}  Ke4 {[%clk 0:01:06]} 68. Nd6+ {[%clk 0:00:37]}  Kd5 {[%clk 0:01:06]} 69. Nf7 {[%clk 0:00:37]}  Ke4 {[%clk 0:00:27]} 70. Nd6+ {[%clk 0:00:49]}  Kd5 {[%clk 0:00:27]} 71. Nf7 {[%clk 0:00:49]}  Nc2 {[%clk 0:00:27]} 72. Ke2 {[%clk 0:00:49]}  Ke6 {[%clk 0:00:27]} 73. Nd8+ {[%clk 0:00:49]}  Kd5 {[%clk 0:00:27]} 74. Kd3 {[%clk 0:00:49]}  Nb4+ {[%clk 0:00:27]} 75. Ke3 {[%clk 0:00:49]}  Ke5 {[%clk 0:00:27]} 76. Nf7+ {[%clk 0:00:49]}  Ke6 {[%clk 0:00:27]} 77. Nd8+ {[%clk 0:00:49]}  Ke7 {[%clk 0:00:27]} 78. Kf4 {[%clk 0:00:49]}  Kf6 {[%clk 0:00:27]} 79. Ke3 {[%clk 0:00:49]}  Nd5+ {[%clk 0:00:27]} 80. Kf2 {[%clk 0:00:49]}  Nc3 {[%clk 0:00:27]} 81. Ke3 {[%clk 0:00:45]}  Nd5+ {[%clk 0:00:54]} 82. Kf2 {[%clk 0:00:45]}  Ke5 {[%clk 0:00:54]} 83. Nf7+ {[%clk 0:00:45]}  Kf6 {[%clk 0:00:54]} 84. Nd8 {[%clk 0:00:45]}  Nc7 {[%clk 0:00:54]} 85. Ke3 {[%clk 0:00:45]}  Nd5+ {[%clk 0:00:54]} 86. Kf2 {[%clk 0:00:45]} 1/2-1/2


[Site "http://www.Chess.com"]

[Event "FIDE World Rapid Chess Championship 2021"]
[White "Carlsson, Pontus"]
[Black "Kuzmicz, Krystian"]
[WhiteFideId "1705814"]
[BlackFideId "1119125"]
[WhiteElo "2436"]
[BlackElo "2314"]
[Result "1-0"]
[Round "08"]
[TimeControl "900+10"]
[Date "2021.12.27"]
[WhiteClock "0:00:25"]
[BlackClock "0:00:59"]

1. e4 {[%clk 0:15:00]}  c5 {[%clk 0:15:00]} 2. Nf3 {[%clk 0:15:00]}  e6 {[%clk 0:15:00]} 3. c3 {[%clk 0:15:00]}  d5 {[%clk 0:13:45]} 4. exd5 {[%clk 0:16:25]}  Qxd5 {[%clk 0:13:45]} 5. d4 {[%clk 0:16:25]}  Nf6 {[%clk 0:13:45]} 6. a3 {[%clk 0:16:25]}  Nc6 {[%clk 0:13:45]} 7. Bd3 {[%clk 0:16:25]}  cxd4 {[%clk 0:13:45]} 8. cxd4 {[%clk 0:16:25]}  Be7 {[%clk 0:13:45]} 9. Nc3 {[%clk 0:16:25]}  Qd8 {[%clk 0:13:45]} 10. O-O {[%clk 0:16:25]}  O-O {[%clk 0:13:45]} 11. Re1 {[%clk 0:16:25]}  b6 {[%clk 0:13:45]} 12. Bc2 {[%clk 0:16:25]}  Bb7 {[%clk 0:13:45]} 13. Qd3 {[%clk 0:16:25]}  Re8 {[%clk 0:13:28]} 14. d5 {[%clk 0:15:35]}  exd5 {[%clk 0:10:55]} 15. Bg5 {[%clk 0:12:37]}  Ne4 {[%clk 0:07:20]} 16. Nxe4 {[%clk 0:12:45]}  dxe4 {[%clk 0:07:20]} 17. Qxe4 {[%clk 0:12:45]}  g6 {[%clk 0:07:20]} 18. Qh4 {[%clk 0:12:15]}  Qc7 {[%clk 0:06:24]} 19. Bb3 {[%clk 0:09:09]}  h5 {[%clk 0:05:51]} 20. Bxe7 {[%clk 0:07:11]}  Nxe7 {[%clk 0:02:19]} 21. Rac1 {[%clk 0:07:11]}  Qd6 {[%clk 0:02:19]} 22. Rcd1 {[%clk 0:07:11]}  Nd5 {[%clk 0:02:19]} 23. Ng5 {[%clk 0:00:25]}  Rxe1+ {[%clk 0:00:59]} 24. Rxe1 {[%clk 0:00:25]}  Qf6 {[%clk 0:00:59]} 25. Qg3 {[%clk 0:00:25]}  Kg7 {[%clk 0:00:59]} 26. h4 {[%clk 0:00:25]}  Nf4 {[%clk 0:00:59]} 27. Bxf7 {[%clk 0:00:25]}  Nxg2 {[%clk 0:00:59]} 28. Re6 {[%clk 0:00:25]} 1-0


[Site "http://www.Chess.com"]

[Event "FIDE World Rapid Chess Championship 2021"]
[White "Tologontegin, Semetey"]
[Black "Tang, Andrew"]
[WhiteFideId "13800574"]
[BlackFideId "2059630"]
[WhiteElo "2300"]
[BlackElo "2427"]
[Result "0-1"]
[Round "08"]
[TimeControl "900+10"]
[Date "2021.12.27"]
[WhiteClock "0:00:19"]
[BlackClock "0:00:24"]

1. d4 {[%clk 0:15:00]}  d5 {[%clk 0:15:00]} 2. Nc3 {[%clk 0:15:00]}  Nf6 {[%clk 0:15:00]} 3. Bf4 {[%clk 0:15:00]}  e6 {[%clk 0:15:00]} 4. Nb5 {[%clk 0:15:00]}  Na6 {[%clk 0:15:00]} 5. e3 {[%clk 0:15:00]}  Be7 {[%clk 0:13:52]} 6. a3 {[%clk 0:16:03]}  O-O {[%clk 0:13:52]} 7. c4 {[%clk 0:16:03]}  c5 {[%clk 0:13:52]} 8. Nf3 {[%clk 0:16:03]}  Ne4 {[%clk 0:13:52]} 9. Rc1 {[%clk 0:16:03]}  Qa5+ {[%clk 0:13:52]} 10. Nd2 {[%clk 0:15:18]}  Bd7 {[%clk 0:13:16]} 11. Nc3 {[%clk 0:12:07]}  Nxc3 {[%clk 0:13:16]} 12. Rxc3 {[%clk 0:12:07]}  Ba4 {[%clk 0:13:16]} 13. Qg4 {[%clk 0:12:05]}  Bf6 {[%clk 0:09:57]} 14. Be5 {[%clk 0:11:40]}  Bxe5 {[%clk 0:09:23]} 15. dxe5 {[%clk 0:11:40]}  Rad8 {[%clk 0:09:23]} 16. cxd5 {[%clk 0:02:23]}  exd5 {[%clk 0:05:59]} 17. Bd3 {[%clk 0:02:04]}  c4 {[%clk 0:05:59]} 18. Bc2 {[%clk 0:02:04]}  Bd7 {[%clk 0:03:52]} 19. Qh4 {[%clk 0:00:17]}  h6 {[%clk 0:03:52]} 20. O-O {[%clk 0:00:17]}  Nc7 {[%clk 0:03:52]} 21. a4 {[%clk 0:00:17]}  b5 {[%clk 0:03:52]} 22. Bb1 {[%clk 0:00:11]}  bxa4 {[%clk 0:00:44]} 23. e4 {[%clk 0:00:11]}  Nb5 {[%clk 0:00:44]} 24. exd5 {[%clk 0:00:11]}  Nxc3 {[%clk 0:00:44]} 25. bxc3 {[%clk 0:00:11]}  Qxd5 {[%clk 0:00:44]} 26. Nxc4 {[%clk 0:00:11]}  Bb5 {[%clk 0:00:44]} 27. Ne3 {[%clk 0:00:11]}  Qxe5 {[%clk 0:00:44]} 28. Rc1 {[%clk 0:00:11]}  Rd2 {[%clk 0:00:44]} 29. h3 {[%clk 0:00:11]}  a3 {[%clk 0:00:44]} 30. Ng4 {[%clk 0:00:19]}  Qd6 {[%clk 0:00:24]} 0-1


[Site "http://www.Chess.com"]

[Event "FIDE World Rapid Chess Championship 2021"]
[White "Nevednichy, Vladislav"]
[Black "Kanarek, Marcel"]
[WhiteFideId "1205730"]
[BlackFideId "1126822"]
[WhiteElo "2425"]
[BlackElo "2296"]
[Result "1-0"]
[Round "08"]
[TimeControl "900+10"]
[Date "2021.12.27"]
[WhiteClock "0:00:26"]
[BlackClock "0:00:53"]

1. e4 {[%clk 0:15:00]}  c5 {[%clk 0:15:00]} 2. Nf3 {[%clk 0:15:00]}  e6 {[%clk 0:15:00]} 3. d4 {[%clk 0:15:14]}  cxd4 {[%clk 0:14:02]} 4. Nxd4 {[%clk 0:15:14]}  Nf6 {[%clk 0:14:02]} 5. Nc3 {[%clk 0:15:14]}  Nc6 {[%clk 0:14:02]} 6. a3 {[%clk 0:15:14]}  Qc7 {[%clk 0:14:02]} 7. Nb3 {[%clk 0:15:14]}  Be7 {[%clk 0:14:02]} 8. Bd3 {[%clk 0:15:14]}  O-O {[%clk 0:14:02]} 9. O-O {[%clk 0:15:14]}  b6 {[%clk 0:13:59]} 10. f4 {[%clk 0:15:14]}  d6 {[%clk 0:13:59]} 11. Qf3 {[%clk 0:15:14]}  Bb7 {[%clk 0:13:59]} 12. Qh3 {[%clk 0:15:14]}  Rad8 {[%clk 0:13:44]} 13. Bd2 {[%clk 0:14:57]}  Qc8 {[%clk 0:11:32]} 14. Rae1 {[%clk 0:14:01]}  e5 {[%clk 0:11:32]} 15. f5 {[%clk 0:14:01]}  Na5 {[%clk 0:08:59]} 16. Nxa5 {[%clk 0:13:51]}  bxa5 {[%clk 0:07:20]} 17. Qg3 {[%clk 0:13:51]}  Kh8 {[%clk 0:07:20]} 18. Kh1 {[%clk 0:13:51]}  Bc6 {[%clk 0:07:20]} 19. a4 {[%clk 0:11:02]}  Nh5 {[%clk 0:06:42]} 20. Qf2 {[%clk 0:09:25]}  Qb7 {[%clk 0:06:42]} 21. Bb5 {[%clk 0:08:42]}  Rc8 {[%clk 0:03:52]} 22. Qe2 {[%clk 0:08:13]}  Bxb5 {[%clk 0:02:41]} 23. axb5 {[%clk 0:08:13]}  Nf6 {[%clk 0:02:41]} 24. Bg5 {[%clk 0:08:13]}  a6 {[%clk 0:02:03]} 25. Bxf6 {[%clk 0:05:48]}  Bxf6 {[%clk 0:02:03]} 26. Rf2 {[%clk 0:05:51]}  Bh4 {[%clk 0:01:03]} 27. g3 {[%clk 0:05:51]}  Bd8 {[%clk 0:01:03]} 28. bxa6 {[%clk 0:05:51]}  Qxb2 {[%clk 0:01:03]} 29. Nd5 {[%clk 0:05:51]}  Bb6 {[%clk 0:01:03]} 30. c3 {[%clk 0:03:00]}  Qxe2 {[%clk 0:00:33]} 31. Rfxe2 {[%clk 0:03:00]}  Rc6 {[%clk 0:00:33]} 32. Rb1 {[%clk 0:03:00]}  Bc5 {[%clk 0:00:33]} 33. Ra2 {[%clk 0:03:00]}  Rxa6 {[%clk 0:00:33]} 34. Ra4 {[%clk 0:03:00]}  h5 {[%clk 0:00:33]} 35. Rb5 {[%clk 0:03:00]}  g6 {[%clk 0:00:33]} 36. f6 {[%clk 0:03:00]}  g5 {[%clk 0:00:24]} 37. Kg2 {[%clk 0:02:42]}  Kh7 {[%clk 0:00:24]} 38. Ne7 {[%clk 0:02:42]}  Rfa8 {[%clk 0:00:24]} 39. g4 {[%clk 0:02:42]}  Rb6 {[%clk 0:00:24]} 40. c4 {[%clk 0:02:42]}  hxg4 {[%clk 0:00:24]} 41. Kg3 {[%clk 0:02:42]}  Rxb5 {[%clk 0:00:24]} 42. cxb5 {[%clk 0:02:42]}  Bb4 {[%clk 0:00:24]} 43. Nc6 {[%clk 0:01:53]}  Rc8 {[%clk 0:00:19]} 44. Kxg4 {[%clk 0:01:53]}  Bd2 {[%clk 0:00:19]} 45. Kf5 {[%clk 0:01:53]}  Rg8 {[%clk 0:00:19]} 46. Kg4 {[%clk 0:01:53]}  Rc8 {[%clk 0:00:19]} 47. h3 {[%clk 0:01:53]}  Kh6 {[%clk 0:00:19]} 48. Rc4 {[%clk 0:01:53]}  Be3 {[%clk 0:00:12]} 49. Nxe5 {[%clk 0:00:39]}  Rb8 {[%clk 0:00:12]} 50. Nxf7+ {[%clk 0:00:39]}  Kg6 {[%clk 0:00:12]} 51. Nxd6 {[%clk 0:00:39]}  Kxf6 {[%clk 0:00:12]} 52. Kf3 {[%clk 0:00:39]}  Bf4 {[%clk 0:00:12]} 53. Rc6 {[%clk 0:00:39]}  Bxd6 {[%clk 0:00:12]} 54. Rxd6+ {[%clk 0:00:39]}  Ke7 {[%clk 0:00:12]} 55. Rd5 {[%clk 0:00:39]}  a4 {[%clk 0:00:12]} 56. Rxg5 {[%clk 0:00:39]}  a3 {[%clk 0:00:12]} 57. Kf4 {[%clk 0:00:39]}  Ra8 {[%clk 0:00:12]} 58. Rg1 {[%clk 0:00:39]}  a2 {[%clk 0:00:22]} 59. Ra1 {[%clk 0:00:49]}  Kd6 {[%clk 0:00:22]} 60. Kf5 {[%clk 0:00:49]}  Kc5 {[%clk 0:00:22]} 61. e5 {[%clk 0:00:49]}  Kxb5 {[%clk 0:00:22]} 62. e6 {[%clk 0:00:49]}  Rf8+ {[%clk 0:00:22]} 63. Ke5 {[%clk 0:00:49]}  Rf2 {[%clk 0:00:22]} 64. e7 {[%clk 0:00:49]}  Re2+ {[%clk 0:00:22]} 65. Kd6 {[%clk 0:00:49]}  Rd2+ {[%clk 0:00:22]} 66. Kc7 {[%clk 0:00:49]}  Re2 {[%clk 0:00:22]} 67. Kd8 {[%clk 0:00:49]}  Rd2+ {[%clk 0:00:22]} 68. Ke8 {[%clk 0:00:49]}  Kc6 {[%clk 0:00:53]} 69. h4 {[%clk 0:00:26]}  Kd6 {[%clk 0:00:53]} 70. h5 {[%clk 0:00:26]}  Rb2 {[%clk 0:00:53]} 71. h6 {[%clk 0:00:26]}  Rh2 {[%clk 0:00:53]} 72. Kd8 {[%clk 0:00:26]}  Rb2 {[%clk 0:00:53]} 73. Rd1+ {[%clk 0:00:26]} 1-0


[Site "http://www.Chess.com"]

[Event "FIDE World Rapid Chess Championship 2021"]
[White "Jakubowski, Krzysztof"]
[Black "Toczek, Grzegorz"]
[WhiteFideId "1112848"]
[BlackFideId "1106457"]
[WhiteElo "2399"]
[BlackElo "2220"]
[Result "1-0"]
[Round "08"]
[TimeControl "900+10"]
[Date "2021.12.27"]
[WhiteClock "0:03:56"]
[BlackClock "0:01:03"]

1. e4 {[%clk 0:15:00]}  c5 {[%clk 0:15:50]} 2. Nf3 {[%clk 0:15:38]}  d6 {[%clk 0:15:50]} 3. d4 {[%clk 0:15:38]}  cxd4 {[%clk 0:15:50]} 4. Nxd4 {[%clk 0:15:38]}  Nf6 {[%clk 0:15:50]} 5. Nc3 {[%clk 0:15:38]}  Nc6 {[%clk 0:15:50]} 6. Bg5 {[%clk 0:15:38]}  Bd7 {[%clk 0:15:50]} 7. Bxf6 {[%clk 0:15:38]}  gxf6 {[%clk 0:15:50]} 8. Be2 {[%clk 0:15:38]}  Bh6 {[%clk 0:15:00]} 9. O-O {[%clk 0:15:21]}  Rg8 {[%clk 0:15:00]} 10. Nf5 {[%clk 0:15:21]}  Bxf5 {[%clk 0:15:00]} 11. exf5 {[%clk 0:15:21]}  Qd7 {[%clk 0:14:06]} 12. Qd5 {[%clk 0:14:47]}  Rg5 {[%clk 0:14:06]} 13. f4 {[%clk 0:13:40]}  e6 {[%clk 0:11:35]} 14. fxe6 {[%clk 0:11:50]}  fxe6 {[%clk 0:08:22]} 15. Qd3 {[%clk 0:11:50]}  Ra5 {[%clk 0:08:31]} 16. Qh3 {[%clk 0:09:24]}  Bg7 {[%clk 0:06:18]} 17. f5 {[%clk 0:09:24]}  Re5 {[%clk 0:05:19]} 18. Bg4 {[%clk 0:06:34]}  exf5 {[%clk 0:02:03]} 19. Bxf5 {[%clk 0:06:34]}  Qc7 {[%clk 0:02:03]} 20. Kh1 {[%clk 0:06:34]}  Kf8 {[%clk 0:02:03]} 21. Qxh7 {[%clk 0:05:22]}  Ne7 {[%clk 0:01:16]} 22. Bd3 {[%clk 0:05:22]}  d5 {[%clk 0:01:16]} 23. Rf3 {[%clk 0:05:22]}  Qb6 {[%clk 0:01:16]} 24. Rg3 {[%clk 0:05:22]}  Rg5 {[%clk 0:01:16]} 25. Rxg5 {[%clk 0:05:22]}  fxg5 {[%clk 0:01:16]} 26. Rf1+ {[%clk 0:03:56]}  Bf6 {[%clk 0:01:03]} 27. Qh8+ {[%clk 0:03:56]}  Kf7 {[%clk 0:01:03]} 28. Qxa8 {[%clk 0:03:56]} 1-0


[Site "http://www.Chess.com"]

[Event "FIDE World Rapid Chess Championship 2021"]
[White "Kadric, Denis"]
[Black "Yunusov, Mukhammad"]
[WhiteFideId "14403803"]
[BlackFideId "14700930"]
[WhiteElo "2542"]
[BlackElo "1832"]
[Result "1-0"]
[Round "08"]
[TimeControl "900+10"]
[Date "2021.12.27"]
[WhiteClock "0:11:41"]
[BlackClock "0:00:20"]

1. e4 {[%clk 0:15:00]}  c5 {[%clk 0:15:00]} 2. Nc3 {[%clk 0:15:00]}  Nc6 {[%clk 0:15:50]} 3. Nge2 {[%clk 0:16:36]}  d6 {[%clk 0:15:50]} 4. d4 {[%clk 0:16:36]}  cxd4 {[%clk 0:15:50]} 5. Nxd4 {[%clk 0:16:36]}  Nf6 {[%clk 0:15:50]} 6. Bc4 {[%clk 0:16:36]}  e6 {[%clk 0:15:50]} 7. Bb3 {[%clk 0:16:36]}  Be7 {[%clk 0:15:50]} 8. O-O {[%clk 0:16:36]}  O-O {[%clk 0:15:50]} 9. f4 {[%clk 0:16:36]}  a6 {[%clk 0:15:50]} 10. Kh1 {[%clk 0:16:36]}  Qc7 {[%clk 0:15:50]} 11. f5 {[%clk 0:16:36]}  Nxd4 {[%clk 0:14:46]} 12. Qxd4 {[%clk 0:16:51]}  Bd7 {[%clk 0:14:46]} 13. Bg5 {[%clk 0:16:51]}  Rac8 {[%clk 0:12:55]} 14. Rad1 {[%clk 0:16:52]}  b5 {[%clk 0:10:24]} 15. a3 {[%clk 0:16:42]}  a5 {[%clk 0:10:24]} 16. Rd3 {[%clk 0:16:50]}  e5 {[%clk 0:05:56]} 17. Qf2 {[%clk 0:13:23]}  Bc6 {[%clk 0:05:56]} 18. Qh4 {[%clk 0:13:32]}  h6 {[%clk 0:01:05]} 19. Rh3 {[%clk 0:13:32]}  Nd5 {[%clk 0:01:05]} 20. f6 {[%clk 0:11:41]}  Bxf6 {[%clk 0:00:20]} 21. Rxf6 {[%clk 0:11:41]}  Nxf6 {[%clk 0:00:20]} 22. Bxf6 {[%clk 0:11:41]}  Kh7 {[%clk 0:00:20]} 23. Bxg7 {[%clk 0:11:41]} 1-0


[Site "http://www.Chess.com"]

[Event "FIDE World Rapid Chess Championship 2021"]
[White "Lopusiewicz, Piotr"]
[Black "Zilka, Stepan"]
[WhiteFideId "1116029"]
[BlackFideId "315303"]
[WhiteElo "2197"]
[BlackElo "2474"]
[Result "0-1"]
[Round "08"]
[TimeControl "900+10"]
[Date "2021.12.27"]
[WhiteClock "0:00:13"]
[BlackClock "0:11:48"]

1. d4 {[%clk 0:15:00]}  Nf6 {[%clk 0:15:00]} 2. c4 {[%clk 0:15:53]}  e6 {[%clk 0:15:41]} 3. Nf3 {[%clk 0:15:53]}  d5 {[%clk 0:15:41]} 4. Nc3 {[%clk 0:15:53]}  Be7 {[%clk 0:15:41]} 5. Bf4 {[%clk 0:15:53]}  O-O {[%clk 0:15:41]} 6. e3 {[%clk 0:15:53]}  c5 {[%clk 0:15:41]} 7. dxc5 {[%clk 0:16:02]}  Bxc5 {[%clk 0:14:32]} 8. Qc2 {[%clk 0:16:02]}  Nc6 {[%clk 0:14:32]} 9. Rd1 {[%clk 0:16:02]}  Be7 {[%clk 0:14:32]} 10. Be2 {[%clk 0:16:02]}  Qa5 {[%clk 0:14:32]} 11. O-O {[%clk 0:16:02]}  Bd7 {[%clk 0:14:32]} 12. a3 {[%clk 0:14:12]}  dxc4 {[%clk 0:13:48]} 13. Bxc4 {[%clk 0:14:12]}  Rfd8 {[%clk 0:13:48]} 14. Nb5 {[%clk 0:11:23]}  Rac8 {[%clk 0:13:49]} 15. Nd6 {[%clk 0:09:09]}  Bxd6 {[%clk 0:13:43]} 16. Bxd6 {[%clk 0:09:09]}  b5 {[%clk 0:13:43]} 17. Ba2 {[%clk 0:09:09]}  Nd4 {[%clk 0:13:43]} 18. Qd2 {[%clk 0:04:37]}  Nxf3+ {[%clk 0:13:31]} 19. gxf3 {[%clk 0:04:37]}  Qxd2 {[%clk 0:13:31]} 20. Rxd2 {[%clk 0:04:37]}  Bc6 {[%clk 0:13:31]} 21. Kg2 {[%clk 0:04:37]}  Bd5 {[%clk 0:13:00]} 22. Bxd5 {[%clk 0:02:49]}  Rxd6 {[%clk 0:13:00]} 23. Bb7 {[%clk 0:00:26]}  Rxd2 {[%clk 0:13:08]} 24. Bxc8 {[%clk 0:00:26]}  Nd5 {[%clk 0:13:08]} 25. Rc1 {[%clk 0:00:26]}  Nxe3+ {[%clk 0:13:08]} 26. Kh3 {[%clk 0:00:26]}  Rxf2 {[%clk 0:13:08]} 27. Bb7 {[%clk 0:00:26]}  g6 {[%clk 0:13:08]} 28. b4 {[%clk 0:00:26]}  h5 {[%clk 0:11:48]} 29. Kg3 {[%clk 0:00:13]}  Rg2+ {[%clk 0:11:48]} 30. Kf4 {[%clk 0:00:13]}  Nc4 {[%clk 0:11:48]} 31. Bc6 {[%clk 0:00:13]}  f5 {[%clk 0:11:48]} 32. Ra1 {[%clk 0:00:13]}  Kf8 {[%clk 0:11:48]} 0-1


[Site "http://www.Chess.com"]